Workbook

Sheet Menu
A1: This is a farm business decision calculator that has 6 worksheets. There are fields that can be completed by the user. It is up to 11 columns wide and 91 rows.
A2: Welcome to the Land Cost Calculator Menu Page
A15: The Land Cost Calculator allows you to examine the cost of owning land and what you can afford to pay for it using a number of worksheets.
A17: Developed by Rob Gamble
A18: Finance and Business Structures Program Lead
A19: OMAFRA, Guelph
A22: 2000-12-01
A24: End of worksheet

Sheet Land Value
A1: Land Purchase Worksheet
B2: Option 1 | C2: Option 2 | D2: Option 3 | E2: Option 4
A3: Net cash Flow per year | B3: 2418 | C3: 100 | D3: 40 | E3: 20
A4: Current selling price | B4: 15000 | C4: 1200 | D4: 1200 | E4: 1200
A5: Discount rate | B5: 0.08 | C5: 0.08 | D5: 0.05 | E5: 0.05
A6: Length of investment | B6: 12 | C6: 10 | D6: 10 | E6: 10
A7: Annual increase in land | B7: 0.03 | C7: 0.03 | D7: 0.03 | E7: 0.03
A8: Tax Rates
A9: Marginal Tax rate | B9: 0.5 | C9: 0.5 | D9: 0.5 | E9: 0.5
A10: Capital gains % | B10: 0.6666 | C10: 0.75 | D10: 0.75 | E10: 0.75
A11: Capital gains Tax rate | B11: =B10*B9 -> 0.3333 | C11: =C10*C9 -> 0.375 | D11: =D10*D9 -> 0.375 | E11: =E10*E9 -> 0.375
A13: Present Value of net cash flow (A) | B13: =PV(B5,B6,-B3) -> 18222.23664 | C13: =PV(C5,C6,-C3) -> 671.0081399 | D13: =PV(D5,D6,-D3) -> 308.8693972 | E13: =PV(E5,E6,-E3) -> 154.4346986
A14: Future value of land | B14: =FV(B7,B6,,-B4) -> 21386.4133 | C14: =FV(C7,C6,,-C4) -> 1612.699655 | D14: =FV(D7,D6,,-D4) -> 1612.699655 | E14: =FV(E7,E6,,-E4) -> 1612.699655
A15: Future value of land discounted back to present value (B) | B15: =PV(B5,B6,,-B14) -> 8492.838971 | C15: =PV(C5,C6,,-C14) -> 746.9919785 | D15: =PV(D5,D6,,-D14) -> 990.0576923 | E15: =PV(E5,E6,,-E14) -> 990.0576923
A16: Future value minus the purchase price | B16: =B14-B4 -> 6386.413303 | C16: =C14-C4 -> 412.6996552 | D16: =D14-D4 -> 412.6996552 | E16: =E14-E4 -> 412.6996552
A17: Present value of those future gains | B17: =PV(B5,B6,,-B16) -> 2536.132591 | C17: =PV(C5,C6,,-C16) -> 191.1597928 | D17: =PV(D5,D6,,-D16) -> 253.3617881 | E17: =PV(E5,E6,,-E16) -> 253.3617881
A18: Capital gains tax (C) | B18: =B17*B11 -> 845.2929925 | C18: =C17*C11 -> 71.68492231 | D18: =D17*D11 -> 95.01067053 | E18: =E17*E11 -> 95.01067053
A20: Present value of Land Purchase (A plus B minus C) | B20: =B13+B15-B18 -> 25869.78262 | C20: =C13+C15-C18 -> 1346.315196 | D20: =D13+D15-D18 -> 1203.916419 | E20: =E13+E15-E18 -> 1049.48172
A23: Alternative Methods to Calculation
A24: Productive Value of Land (Capitalization Method) | B24: =B3/B5 -> 30225 | C24: =C3/C5 -> 1250 | D24: =D3/D5 -> 800 | E24: =E3/E5 -> 400
A25: Economic Value (accounts for Capital Gain) | B25: =B3/(B5-B7) -> 48360 | C25: =C3/(C5-C7) -> 2000 | D25: =D3/(D5-D7) -> 2000 | E25: =E3/(E5-E7) -> 1000
A29: Developed by Rob Gamble
A30: Finance and Business Structures, Program Lead
A31: OMAFRA
A35: End of worksheet

Sheet Afford
A1: HOW MUCH CAN YOU AFFORD TO PAY FOR LAND?
A2: INVESTMENT DETAILS
A3: Amount of land to be purchased (acres) | B3: 100
A4: Price per Acre | B4: 2000
A5: Total Cost for Land | B5: =B3*B4 -> 200000
A6: Down payment | B6: 25000 | C6: (A)
A7: Loan Amount ($) | B7: =B5-B6 -> 175000
A8: Annual Interest Rate (%) | B8: 7
A9: Amortized Length of Loan (Years) | B9: 15
A10: Number of Payments Per Year | B10: 1
A11: Compounding Periods per Year | B11: 2
A12: =IF(OR(B9<1,),"WARNING: LOANS MUST BE AT LEAST ONE YEAR IN LENGTH",IF(OR(B10<1),"WARNING: MINIMUM OF ONE PAYMENT PER YEAR REQUIRED",IF(OR(B11<1),"WARNING: AT LEAST ONE COMPOUND PER YEAR REQUIRED",""))) -> 
A13: Loan Payment per period | B13: =IF(AND(AND(AND(AND(B9>=1,B10>=1),B11>=1),B7>=0),B8>=0),IF(B8=0,B7/B9/B10,((1+(B8/(B11*100)))^(B11/B10)-1)/(1-((1/(1+((1+(B8/(B11*100)))^(B11/B10)-1))^(B10*B9))))*B7),#VALUE!) -> 19362.99047
A14: Total Payments | B14: =B13*B10*B9 -> 290444.857
A15: Buildings and Equipment
A16: Value of your current equipment | B16: 100000
A17: Value of your current buildings | B17: 100000
A18: CASH INFLOW:
A19: Total expected farm cash income (including amount from land to be purchased) | B19: 250000
A20: Other regular income (including spouse income) | B20: 50000
A21: Total cash inflow | B21: =B19+B20 -> 300000 | C21: (B)
A22: CASH OUTFLOW:
A23: All operating cash costs including livestock,and cash expenses for the land to be purchased | B23: 180000
A24: Annual principal and interest payments on existing debt | B24: 30000
A25: Replacement fund for equipment 10% | B25: =B16*0.1 -> 10000
A26: Replacement fund for buildings 5% | B26: =B17*0.05 -> 5000
A27: Family living expenses | B27: 30000
A28: Annual income tax payable | B28: 5000
A29: Additional equipment and buildings if required because of land purchase | B29: 0
A30: Total Cash Outflow | B30: =SUM(B23:B29) -> 260000 | C30: (C)
A31: Calculations
A32: Risk Adjustment to cash available | B32: 0.25 | C32: (D)
A33: Expected cash available (B - C) | B33: =B21-B30 -> 40000 | C33: (E)
A34: Less: Allowance for risk (D) *(E) | B34: =B33*B32 -> 10000 | C34: (F)
A35: Cash available for annual debt payments (E - F) | B35: =B33-B34 -> 30000 | C35: (G)
A36: Cash required for debt payments | B36: =B13 -> 19362.99047
A37: Difference (if negative the debt requirements are too high) | B37: =B35-B36 -> 10637.00953
A39: Maximum Debt you can Afford
A40: Amortization factor | B40: =B13/B7 -> 0.1106456598 | C40: (H)
A41: Amount of debt that can be serviced (G divided by H) | B41: =B35/B40 -> 271135.8046 | C41: (I)
A42: Dollar amount available for land purchase(A) + (I) | B42: =B41+B6 -> 296135.8046 | C42: (J)
A44: Below is a chart to organize your current loans and a loan calculator
B46: Current Loans | D46: Revised: Nov 88
A47: Current Liabilities | B47: Amount | C47: Interest | D47: Months | E47: Interest
A48: (Less Than One Year) | B48: Owed | C48: Rate | D48: Outstanding | E48: Owing
A49: Operating Loans
B50: 0 | C50: 0 | D50: 0 | E50: =B50*C50/100*D50/12 -> 0
B51: 0 | C51: 0 | D51: 0 | E51: =B51*C51/100*D51/12 -> 0
B52: 0 | C52: 0 | D52: 0 | E52: =B52*C52/100*D52/12 -> 0
A53: Supplier Credit
B54: 0 | C54: 0 | D54: 0 | E54: =B54*C54/100*D54/12 -> 0
B55: 0 | C55: 0 | D55: 0 | E55: =B55*C55/100*D55/12 -> 0
B56: 0 | C56: 0 | D56: 0 | E56: =B56*C56/100*D56/12 -> 0
B57: 0 | C57: 0 | D57: 0 | E57: =B57*C57/100*D57/12 -> 0
B58: 0 | C58: 0 | D58: 0 | E58: =B58*C58/100*D58/12 -> 0
A59: Sub Total | B59: =SUM(B50:B58) -> 0 | E59: =SUM(E50:E58) -> 0
A60: Long Term Liabilities
A61: (Greater Than One Year) | B61: Ave. Balance | C61: Principal | D61: Interest | E61: Total
B62: Owing | C62: Payments | D62: Payments | E62: Payment
A63: Mortgages
B64: 0 | C64: 0 | D64: 0 | E64: =C64+D64 -> 0
B65: 521 | C65: 0 | D65: 0 | E65: =C65+D65 -> 0
B66: 0 | C66: 0 | D66: 0 | E66: =C66+D66 -> 0
A67: Term Loans
B68: 0 | C68: 0 | D68: 0 | E68: =C68+D68 -> 0
B69: 0 | C69: 0 | D69: 0 | E69: =C69+D69 -> 0
B70: 0 | C70: 0 | D70: 0 | E70: =C70+D70 -> 0
B71: 0 | C71: 0 | D71: 0 | E71: =C71+D71 -> 0
A72: Other Financing
B73: 0 | C73: 0 | D73: 0 | E73: =C73+D73 -> 0
B74: 0 | C74: 0 | D74: 0 | E74: =C74+D74 -> 0
B75: 0 | C75: 0 | D75: 0 | E75: =C75+D75 -> 0
A76: Sub Total | B76: =SUM(B64:B75) -> 521 | C76: =SUM(C64:C75) -> 0 | D76: =SUM(D64:D75) -> 0 | E76: =SUM(E64:E75) -> 0
A79: COMPARING INITIAL RATES
B80: LOAN A | C80: LOAN B | D80: LOAN C
A81: Loan Amount ($) | B81: 5000 | C81: 100000 | D81: 120000
A82: Annual Interest Rate (%) | B82: 7 | C82: 12 | D82: 11.25
A83: Amortized Length of Loan (Years) | B83: 15 | C83: 15 | D83: 20
A84: Number of Payments Per Year | B84: 1 | C84: 12 | D84: 12
A85: Compounding Periods per Year | B85: 1 | C85: 2 | D85: 2
A86: =IF(OR(OR(B83<1,C83<1),D83<1),"WARNING: LOANS MUST BE AT LEAST ONE YEAR IN LENGTH",IF(OR(OR(B84<1,C84<1),D84<1),"WARNING: MINIMUM OF ONE PAYMENT PER YEAR REQUIRED",IF(OR(OR(B85<1,C85<1),D85<1),"WARNING: AT LEAST ONE COMPOUND PER YEAR REQUIRED",""))) -> 
A87: PAYMENT | B87: =IF(AND(AND(AND(AND(B83>=1,B84>=1),B85>=1),B81>=0),B82>=0),IF(B82=0,B81/B83/B84,((1+(B82/(B85*100)))^(B85/B84)-1)/(1-((1/(1+((1+(B82/(B85*100)))^(B85/B84)-1))^(B84*B83))))*B81),#VALUE!) -> 548.9731235 | C87: =IF(AND(AND(AND(AND(C83>=1,C84>=1),C85>=1),C81>=0),C82>=0),IF(C82=0,C81/C83/C84,((1+(C82/(C85*100)))^(C85/C84)-1)/(1-((1/(1+((1+(C82/(C85*100)))^(C85/C84)-1))^(C84*C83))))*C81),#VALUE!) -> 1181.609624 | D87: =IF(AND(AND(AND(AND(D83>=1,D84>=1),D85>=1),D81>=0),D82>=0),IF(D82=0,D81/D83/D84,((1+(D82/(D85*100)))^(D85/D84)-1)/(1-((1/(1+((1+(D82/(D85*100)))^(D85/D84)-1))^(D84*D83))))*D81),#VALUE!) -> 1238.221488
A88: TOTAL INTEREST | B88: =B87*B83*B84-B81 -> 3234.596853 | C88: =C87*C83*C84-C81 -> 112689.7324 | D88: =D87*D83*D84-D81 -> 177173.1571
B89: =B87*B83*B84 -> 8234.596853
A90: PAYMENT SAVING (LOSS) VS. "A" | C90: =B87-C87 -> -632.6365008 | D90: =B87-D87 -> -689.2483644
A91: TOTAL INTEREST SAVING (LOSS) VS. "A" | C91: =B88-C88 -> -109455.1355 | D91: =B88-D88 -> -173938.5602
A93: End of worksheet

Sheet Sask
A1: WORKSHEET FOR ESTABLISHING THE VALUE OF LAND
A2: Existing Grain Acres | B2: 800
A3: Grain Acres for Purchase | B3: 200
A4: Estimated Annual Capital Gain | B4: 0.03
A5: Annual Labour and Management Allowance | B5: 20000
A6: Capitalization Rate | B6: 5
A7: Market Value of Comparable Sales (per acre) | B7: 2400
A8: Value of Buildings and Machinery
A9: Current Buildings | B9: 25000
A10: Current Machinery | B10: 110000
A11: Additional Buildings | B11: 0
A12: Additional Machinery | B12: 15000
A13: STEP 1. GROSS INCOME ESTIMATE
A14: Estimated yields and prices of grains (typical rotation) to be grown on the new land
A15: Crop | B15: Acres | C15: Yield | D15: Price | E15: Total Income
A16: Corn | B16: 80 | C16: 120 | D16: 2.5 | E16: =B16*C16*D16 -> 24000
A17: Soybeans | B17: 60 | C17: 40 | D17: 6 | E17: =B17*C17*D17 -> 14400
A18: Wheat | B18: 60 | C18: 35 | D18: 3 | E18: =B18*C18*D18 -> 6300
A19: Other Crop | B19: 0 | C19: 0 | D19: 0 | E19: =B19*C19*D19 -> 0
A20: Other Crop | B20: 0 | C20: 0 | D20: 0 | E20: =B20*C20*D20 -> 0
A21: Total grain acres for purchase = | B21: =SUM(B16:B20) -> 200
A22: Other Income | E22: 8000
A23: Total income | E23: =SUM(E16+E17+E22) -> 46400
A24: Income per acre: | E24: =E23/B21 -> 232
A25: STEP 2. COST OF PRODUCTION ESTIMATE
A26: A. Operating Costs
A27: 1) Total annual operating expenses on existing farm unit | C27: 200000
A28: 2) Deduct:
A29: Interest on loans for capital assets | B29: 10000
A30: Livestock share of total expenses including a protion of machinery costs except loan interest | B30: 0
A31: Extraordinary expenses not expected to continue | B31: 4000
A32: Total | B32: =B29+B30+B31 -> 14000
A33: = Total Operating Costs - Existing Land Base = | C33: =C27-B32 -> 186000
A34: 3) Operating cost per grain acre: | B34: =C33/B2 -> 232.5
A35: 4) Adjust operating costs per acre for changes in farming practices of new land, e.g. more weed control (+) or (-) | B35: 2
A37: 5) Expected operating costs per grain acre on new land | C37: =B35+B34 -> 234.5
A39: B. Fixed Costs, Labour and Management
A40: 1) Total annual fixed costs on existing Farm Unit:
A41: Depreciation on crop portion of buildings | B41: 0.05 | C41: =(B9*B41) -> 1250
A42: Depreciation on crop portion of machinery | B42: 0.1 | C42: =+(B10*B42) -> 11000
A43: Interest on investments for crop portion of buildings & machinery | B43: 0.07 | C43: =(B9+B10)*B43 -> 9450
A44: Labour and management for grain operation | B44: =+B5 -> 20000
A45: Total Fixed Costs on Existing Farm Unit | C45: =SUM(B41:B44) -> 20000.22
A47: 2) Plus:
A48: Depreciation on grain portion of additional buildings (5%) & machinery (10%) | B48: 0.05 | C48: =B11*B48 -> 0
A49: Investment cost of grain portion of additional buildings & machinery (10%) | B49: 0.1 | C49: =B12*B49 -> 1500
A50: Management Allowance | B50: 2000
A51: Sub-Total | C51: =SUM(B48:B50) -> 2000.15
A52: Total Fixed Costs | C52: =SUM(C45+C51) -> 22000.37
A54: 3) Expected Fixed Costs per Grain Acre:
A55: = Total Fixed Costs/Existing Grain Acres + Grain Acres for Purchase = | C55: =C52/(B2+B3) -> 22.00037
A57: C. Total Costs
A58: Expected total costs per grain acre on new land:
A59: = Expected operating costs + Expected fixed costs = | C59: =C37+C55 -> 256.50037
A61: STEP 3. RETURN TO LAND
A63: Return to land per acre for proposed purchase
A64: = Income per grain acre - Expected total cost per grain acre = | C64: =E24-C59 -> -24.50037
A66: STEP 4. CAPITALIZATION (VALUE OF LAND)
A68: 1) Productive value of land:
A69: = Return to land X 100/Capitalization rate = | C69: =C64/B6 -> -4.900074 | D69: based on infinite years
A71: 2) Economic value of land (including potential capital gain):
A72: = Return to land x 100/Capital rate-capital gain = | C72: =C64/(B6-B4) -> -4.929651911
A74: 3) Market value of land (reported in the area): | C74: =B7 -> 2400
A76: 4) Variances:
A77: Market value less productive value | C77: =C74-C69 -> 2404.900074
A78: Market value less economic value | C78: =C74-C72 -> 2404.929652
A80: End of worksheet

Sheet KSU
A1: SHOULD I BUY MORE LAND | D1: NET RETURN/ACRE based on 100% financing
A2: adapted from a KSU Extension Publication
A4: Interest rate | B4: 7 | D4: PRICE OF | G4: GROSS CROP VALUE
A5: Amount financed - total dollar amount | B5: 100000 | D5: LAND | E5: =F5-10 -> 170 | F5: =G5-10 -> 180 | G5: =H5-10 -> 190 | H5: =$B$10 -> 200 | I5: =H5+10 -> 210 | J5: =I5+10 -> 220 | K5: =J5+10 -> 230
A6: Years financed | B6: 20 | D6: =D7-100 -> 1600 | E6: =(+E$5-($B$8+$B$9))*($B$7/100)-PMT($B$4/100,$B$6,-($D6)) -> -124.0286812 | F6: -114.0286812 | G6: -104.0286812 | H6: -94.02868119 | I6: -84.02868119 | J6: -74.02868119 | K6: -64.02868119
A7: Percent of acres harvested ( % ) | B7: 100 | D7: =D8-100 -> 1700 | E7: -133.4679738 | F7: -123.4679738 | G7: -113.4679738 | H7: -103.4679738 | I7: -93.46797376 | J7: -83.46797376 | K7: -73.46797376
A8: Crop production cost per acre | B8: 120 | D8: =D9-100 -> 1800 | E8: -142.9072663 | F8: -132.9072663 | G8: -122.9072663 | H8: -112.9072663 | I8: -102.9072663 | J8: -92.90726634 | K8: -82.90726634
A9: Depreciation cost per crop acre | B9: 23 | D9: =D10-100 -> 1900 | E9: -152.3465589 | F9: -142.3465589 | G9: -132.3465589 | H9: -122.3465589 | I9: -112.3465589 | J9: -102.3465589 | K9: -92.34655891
A10: Expected gross crop value per acre including gov't payments | B10: 200 | D10: =$B$12 -> 2000 | E10: -161.7858515 | F10: -151.7858515 | G10: -141.7858515 | H10: -131.7858515 | I10: -121.7858515 | J10: -111.7858515 | K10: -101.7858515
A11: Number of acres to purchase | B11: 100 | D11: =D10+100 -> 2100 | E11: -171.2251441 | F11: -161.2251441 | G11: -151.2251441 | H11: -141.2251441 | I11: -131.2251441 | J11: -121.2251441 | K11: -111.2251441
A12: Cost per acre | B12: 2000 | D12: =D11+100 -> 2200 | E12: -180.6644366 | F12: -170.6644366 | G12: -160.6644366 | H12: -150.6644366 | I12: -140.6644366 | J12: -130.6644366 | K12: -120.6644366
A13: Expected annual income for land purchase based on financing | B13: =((($B$10-($B$8+$B$9))*$B$11)*($B$7/100)-PMT($B$4/100,$B$6,-($B$5))) -> -3739.292574 | D13: =D12+100 -> 2300 | E13: -190.1037292 | F13: -180.1037292 | G13: -170.1037292 | H13: -160.1037292 | I13: -150.1037292 | J13: -140.1037292 | K13: -130.1037292
A14: Annual income for land purchase based on 100% financing | B14: =(($B$10-($B$8+$B$9))*$B$11)*($B$7/100)-PMT($B$4/100,$B$6,-($B$11*$B$12)) -> -13178.58515 | D14: =D13+100 -> 2400 | E14: -199.5430218 | F14: -189.5430218 | G14: -179.5430218 | H14: -169.5430218 | I14: -159.5430218 | J14: -149.5430218 | K14: -139.5430218
A15: Annual income for land purchase based on net cash flow | B15: =(($B$10-$B$8)*$B$11)*($B$7/100)-PMT($B$4/100,$B$6,-($B$5)) -> -1439.292574
A16: (excluding depreciation, not adjusted for opportunity cost) | D16: *** FORMULA FOR CALCULATING NET RETURN/ACRE=
E17: (GROSS CROP VALUE-(CROP PROD.$+DEPREC.$))*%HARVESTED ACRES
E18: - ANNUAL PAYMENT OF LOAN
D20: CASH FLOW based on amount financed without depreciation
D22: AMOUNT
D23: BORROWED | G23: GROSS CROP VALUE
D24: PER ACRE | E24: =F24-10 -> 170 | F24: =G24-10 -> 180 | G24: =H24-10 -> 190 | H24: =$B$10 -> 200 | I24: =H24+10 -> 210 | J24: =I24+10 -> 220 | K24: =J24+10 -> 230
D25: =IF($D$28>300,+D26-100,0) -> 600 | E25: =(+E$5-$B$8)*($B$7/100)-PMT($B$4/100,$B$6,-($D25)) -> -6.635755446 | F25: 3.364244554 | G25: 13.36424455 | H25: 23.36424455 | I25: 33.36424455 | J25: 43.36424455 | K25: 53.36424455
D26: =IF($D$28>200,+D27-100,0) -> 700 | E26: -16.07504802 | F26: -6.07504802 | G26: 3.92495198 | H26: 13.92495198 | I26: 23.92495198 | J26: 33.92495198 | K26: 43.92495198
D27: =IF(D28>100,+D28-100,0) -> 800 | E27: -25.51434059 | F27: -15.51434059 | G27: -5.514340595 | H27: 4.485659405 | I27: 14.48565941 | J27: 24.48565941 | K27: 34.48565941
D28: =IF(D29>0,D29-100,0) -> 900 | E28: -34.95363317 | F28: -24.95363317 | G28: -14.95363317 | H28: -4.953633169 | I28: 5.046366831 | J28: 15.04636683 | K28: 25.04636683
D29: =$B$5/B11 -> 1000 | E29: -44.39292574 | F29: -34.39292574 | G29: -24.39292574 | H29: -14.39292574 | I29: -4.392925743 | J29: 5.607074257 | K29: 15.60707426
D30: =D29+100 -> 1100 | E30: -53.83221832 | F30: -43.83221832 | G30: -33.83221832 | H30: -23.83221832 | I30: -13.83221832 | J30: -3.832218318 | K30: 6.167781682
D31: =D30+100 -> 1200 | E31: -63.27151089 | F31: -53.27151089 | G31: -43.27151089 | H31: -33.27151089 | I31: -23.27151089 | J31: -13.27151089 | K31: -3.271510892
D32: =D31+100 -> 1300 | E32: -72.71080347 | F32: -62.71080347 | G32: -52.71080347 | H32: -42.71080347 | I32: -32.71080347 | J32: -22.71080347 | K32: -12.71080347
D33: =D32+100 -> 1400 | E33: -82.15009604 | F33: -72.15009604 | G33: -62.15009604 | H33: -52.15009604 | I33: -42.15009604 | J33: -32.15009604 | K33: -22.15009604
D35: *** FORMULA FOR CALCULATING CASH FLOW=
E36: (AMOUNT BORROWED/ACRE-CROP PRODUCTION $) * % HARVESTED ACRES
E37: - ANNUAL PAYMENT OF LOAN
A42: End of worksheet

Sheet Blank
A1: HOW MUCH CAN YOU AFFORD TO PAY FOR LAND?
A2: PURCHASE DETAILS | B2: Example | D2: Your Farm
A3: Amount of land to be purchased (acres) | B3: 100
A4: Price per Acre | B4: 2000
A5: Total Cost for Land | B5: =B3*B4 -> 200000
A6: Down payment | B6: 25000 | C6: (A) | E6: (A)
A7: Buildings and Equipment
A8: Value of your current equipment | B8: 100000
A9: Value of your current buildings | B9: 100000
A11: CASH INFLOW:
A12: Total expected farm cash income (including amount from land to be purchased) | B12: 250000
A13: Other regular income (include spouses income) | B13: 50000
A14: Total cash inflow | B14: =B12+B13 -> 300000 | C14: (B) | E14: (B)
A16: CASH OUTFLOW:
A17: All operating cash costs including livestock,and cash expenses for the land to be purchased | B17: 180000
A18: Annual principal and interest payments on existing debt | B18: 30000
A19: Replacement fund for equipment 10% | B19: =B8*0.1 -> 10000
A20: Replacement fund for buildings 5% | B20: =B9*0.05 -> 5000
A21: Family living expenses | B21: 30000
A22: Annual income tax payable | B22: 5000
A23: Additional equipment and buildings if required because of land purchase | B23: 0
A24: Total Cash Outflow | B24: =SUM(B17:B23) -> 260000 | C24: (C) | E24: (C)
A26: CALCULATIONS
A27: Risk Adjustment to cash available | B27: 0.25 | C27: (D) | E27: (D)
A28: Expected cash available (B - C) | B28: =B14-B24 -> 40000 | C28: (E) | E28: (E)
A29: Less: Allowance for risk (D) *(E) | B29: =B28*B27 -> 10000 | C29: (F) | E29: (F)
A30: Cash available for annual debt payments (E - F) | B30: =B28-B29 -> 30000 | C30: (G) | E30: (G)
A32: Maximum Debt you can Afford
A33: Amortization factor | B33: 0.1098 | C33: (H) | E33: (H)
A34: Amount of debt that can be serviced (G divided by H) | B34: =B30/B33 -> 273224.0437 | C34: (I) | E34: (I)
A35: Dollar amount available for land purchase(A) + (I) | B35: =B34+B6 -> 298224.0437 | C35: (J) | E35: (J)
A37: End of worksheet
